fUST/lending_fUST_20260529
["ID","MTS","AMOUNT","RATE_DAILY","PERIOD"]
[423289920,1780032643000,-500.0,0.00010063,2]
[423289922,1780032643000,-503.7229213,0.00010063,2]
[423289919,1780032643000,-500.0,0.00010063,2]
[423289938,1780032643000,-500.0,0.00010063,2]
[423289918,1780032643000,-500.0,0.00010063,2]
[423289923,1780032643000,-500.0,0.00010063,2]
[423289921,1780032643000,-500.0,0.00010063,2]
[423289913,1780032643000,-500.0,0.00010062,2]
[423289925,1780032643000,-603.4922378,0.00010063,2]
[423289927,1780032643000,-500.0,0.00010063,2]
[423289928,1780032643000,-500.0,0.00010063,2]
[423289929,1780032643000,-500.0,0.00010063,2]
[423289933,1780032643000,-503.21486722,0.00010063,2]
[423289936,1780032643000,-500.0,0.00010063,2]
[423289932,1780032643000,-368.60559643,0.00010063,2]
[423289926,1780032643000,-500.0,0.00010063,2]
[423289937,1780032643000,-500.0,0.00010063,2]
[423289931,1780032643000,-500.0,0.00010063,2]
[423289924,1780032643000,-500.0,0.00010063,2]
[423289969,1780032643000,-504.38465574,0.00010064,2]
[423289930,1780032643000,-500.0,0.00010063,2]
[423289972,1780032643000,-1000.0,0.00010064,2]
[423290014,1780032643000,-500.0,0.00010108,2]
[423290011,1780032643000,-500.0,0.00010108,2]
[423290016,1780032643000,-500.0,0.00010108,2]
[423290015,1780032643000,-630.5060767,0.00010108,2]
[423290010,1780032643000,-643.95681421,0.00010108,2]
[423290009,1780032643000,-521.48691582,0.00010065,2]
[423290006,1780032643000,-500.0,0.00010065,2]
[423290004,1780032643000,-502.79946246,0.00010064,2]
[423290008,1780032643000,-500.0,0.00010065,2]
[423290013,1780032643000,-500.0,0.00010108,2]
[423290012,1780032643000,-500.0,0.00010108,2]
[423290029,1780032643000,-651.0,0.0001033,2]
[423290024,1780032643000,-166.0,0.0001033,2]
[423290025,1780032643000,-166.0,0.0001033,2]
[423290022,1780032643000,-501.71319614,0.00010108,2]
[423290017,1780032643000,-502.51089973,0.00010108,2]
[423290028,1780032643000,-651.0,0.0001033,2]
[423290030,1780032643000,-651.0,0.0001033,2]
[423290031,1780032643000,-651.0,0.0001033,2]
[423290021,1780032643000,-500.0,0.00010108,2]
[423290026,1780032643000,-651.0,0.0001033,2]
[423290019,1780032643000,-501.65374081,0.00010108,2]
[423290023,1780032643000,-156.0,0.0001033,2]
[423290027,1780032643000,-651.0,0.0001033,2]
[423290034,1780032643000,-500.0,0.00010335,2]
[423290032,1780032643000,-651.0,0.0001033,2]
[423290035,1780032643000,-500.0,0.00010335,2]
[423290036,1780032643000,-500.0,0.00010335,2]
[423290033,1780032643000,-651.0,0.0001033,2]
[423290005,1780032643000,-500.0,0.00010064,2]
[423290003,1780032643000,-500.0,0.00010064,2]
[423289970,1780032643000,-500.0,0.00010064,2]
[423289991,1780032643000,-500.0,0.00010064,2]
[423289974,1780032643000,-500.0,0.00010064,2]
[423289967,1780032643000,-500.0,0.00010064,2]
[423289979,1780032643000,-501.27490035,0.00010064,2]
[423289968,1780032643000,-500.0,0.00010064,2]
[423289973,1780032643000,-500.0,0.00010064,2]
[423289975,1780032643000,-500.0,0.00010064,2]
[423289978,1780032643000,-334.40401338,0.00010064,2]
[423289981,1780032643000,-500.0,0.00010064,2]
[423290007,1780032643000,-500.0,0.00010065,2]
[423289982,1780032643000,-473.60382651,0.00010064,2]
[423289983,1780032643000,-500.0,0.00010064,2]
[423289985,1780032643000,-500.0,0.00010064,2]
[423289984,1780032643000,-339.47062964,0.00010064,2]
[423289987,1780032643000,-500.0,0.00010064,2]
[423289980,1780032643000,-500.0,0.00010064,2]
[423289988,1780032643000,-502.86581522,0.00010064,2]
[423289986,1780032643000,-500.0,0.00010064,2]
[423290001,1780032643000,-280.49210335,0.00010064,2]
[423289990,1780032643000,-503.68767566,0.00010064,2]
[423289994,1780032643000,-500.0,0.00010064,2]
[423289999,1780032643000,-500.0,0.00010064,2]
[423289993,1780032643000,-500.0,0.00010064,2]
[423289989,1780032643000,-223.99507254,0.00010064,2]
[423289992,1780032643000,-158.48258476,0.00010064,2]
[423290000,1780032643000,-500.0,0.00010064,2]
[423289995,1780032643000,-500.0,0.00010064,2]
[423289996,1780032643000,-500.0,0.00010064,2]
[423289997,1780032643000,-284.88807474,0.00010064,2]
[423290002,1780032643000,-500.0,0.00010064,2]
[423289998,1780032643000,-160.86745194,0.00010064,2]
[423290081,1780032644000,-500.0,0.00010338,2]
[423290079,1780032644000,-504.41369645,0.00010338,2]
[423290076,1780032644000,-504.26692513,0.00010338,2]
[423290075,1780032644000,-500.0,0.00010338,2]
[423290077,1780032644000,-1002.61942029,0.00010338,2]
[423290083,1780032644000,-500.0,0.00010338,2]
[423290072,1780032644000,-502.90889628,0.00010338,2]
[423290084,1780032644000,-226.18412616,0.00010338,2]
[423290073,1780032644000,-500.0,0.00010338,2]
[423290064,1780032644000,-500.0,0.00010338,2]
[423290068,1780032644000,-502.09314582,0.00010338,2]
[423290074,1780032644000,-500.0,0.00010338,2]
[423290080,1780032644000,-500.0,0.00010338,2]
[423290089,1780032644000,-500.0,0.00010338,2]
[423290078,1780032644000,-502.01555464,0.00010338,2]
[423290087,1780032644000,-500.0,0.00010338,2]
[423290086,1780032644000,-500.0,0.00010338,2]
[423290085,1780032644000,-500.0,0.00010338,2]
[423290090,1780032644000,-500.0,0.00010338,2]
[423290091,1780032644000,-500.0,0.00010338,2]
[423290088,1780032644000,-500.0,0.00010338,2]
[423290093,1780032644000,-500.0,0.00010338,2]
[423290095,1780032644000,-220.0973695,0.00010338,2]
[423290092,1780032644000,-500.0,0.00010338,2]
[423290094,1780032644000,-500.0,0.00010338,2]
[423290096,1780032644000,-500.0,0.00010338,2]
[423290097,1780032644000,-500.0,0.00010339,2]
[423290063,1780032644000,-500.0,0.00010338,2]
[423290082,1780032644000,-502.87645728,0.00010338,2]
[423290065,1780032644000,-500.0,0.00010338,2]
[423290048,1780032644000,-500.0,0.00010337,2]
[423290069,1780032644000,-504.828113,0.00010338,2]
[423290109,1780032644000,-500.0,0.00010609,2]
[423290042,1780032644000,-500.0,0.00010337,2]
[423290044,1780032644000,-500.0,0.00010337,2]
[423290040,1780032644000,-1431.46,0.00010336,2]
[423290038,1780032644000,-500.0,0.00010336,2]
[423290041,1780032644000,-500.0,0.00010336,2]
[423290037,1780032644000,-500.0,0.00010335,2]
[423290043,1780032644000,-500.0,0.00010337,2]
[423290039,1780032644000,-500.0,0.00010336,2]
[423290046,1780032644000,-500.0,0.00010337,2]
[423290056,1780032644000,-500.0,0.00010337,2]
[423290057,1780032644000,-500.0,0.00010337,2]
[423290058,1780032644000,-500.0,0.00010337,2]
[423290047,1780032644000,-500.0,0.00010337,2]
[423290051,1780032644000,-500.0,0.00010337,2]
[423290049,1780032644000,-500.0,0.00010337,2]
[423290045,1780032644000,-439.77178788,0.00010337,2]
[423290050,1780032644000,-500.0,0.00010337,2]
[423290054,1780032644000,-320.68209721,0.00010337,2]
[423290052,1780032644000,-500.0,0.00010337,2]
[423290055,1780032644000,-393.02489864,0.00010337,2]
[423290053,1780032644000,-500.61156931,0.00010337,2]
[423290059,1780032644000,-504.53916554,0.00010338,2]
[423290060,1780032644000,-500.0,0.00010338,2]
[423290070,1780032644000,-500.0,0.00010338,2]
[423290071,1780032644000,-502.3786969,0.00010338,2]
[423290062,1780032644000,-500.0,0.00010338,2]
[423290061,1780032644000,-455.2154698,0.00010338,2]
[423290067,1780032644000,-500.89390088,0.00010338,2]
[423290066,1780032644000,-438.88274296,0.00010338,2]
[423290102,1780032644000,-239.80306418,0.00010382,2]
[423290106,1780032644000,-500.0,0.00010609,2]
[423290101,1780032644000,-500.0,0.00010382,2]
[423290147,1780032644000,-500.0,0.00010612,2]
[423290146,1780032644000,-178.20371058,0.00010612,2]
[423290148,1780032644000,-500.0,0.00010612,2]
[423290145,1780032644000,-500.0,0.00010612,2]
[423290138,1780032644000,-500.0,0.00010612,2]
[423290139,1780032644000,-500.0,0.00010612,2]
[423290142,1780032644000,-500.0,0.00010612,2]
[423290141,1780032644000,-500.0,0.00010612,2]
[423290140,1780032644000,-500.0,0.00010612,2]
[423290135,1780032644000,-500.0,0.00010612,2]
[423290137,1780032644000,-500.0,0.00010612,2]
[423290143,1780032644000,-500.0,0.00010612,2]
[423290144,1780032644000,-500.0,0.00010612,2]
[423290150,1780032644000,-500.0,0.00010613,2]
[423290149,1780032644000,-244.48617474,0.00010612,2]
[423290156,1780032644000,-651.0,0.00010635,2]
[423290161,1780032644000,-685.03690332,0.00010635,2]
[423290155,1780032644000,-651.0,0.00010635,2]
[423290157,1780032644000,-651.0,0.00010635,2]
[423290154,1780032644000,-172.0,0.00010635,2]
[423290153,1780032644000,-156.0,0.00010635,2]
[423290158,1780032644000,-651.0,0.00010635,2]
[423290152,1780032644000,-500.0,0.00010613,2]
[423290159,1780032644000,-651.0,0.00010635,2]
[423290151,1780032644000,-500.0,0.00010613,2]
[423290165,1780032644000,-158766.7925592,0.00010706,2]
[423290111,1780032644000,-500.0,0.0001061,2]
[423290164,1780032644000,-720.0,0.00010676,2]
[423290163,1780032644000,-500.0,0.00010656,2]
[423290136,1780032644000,-500.0,0.00010612,2]
[423290133,1780032644000,-504.36418631,0.00010612,2]
[423290162,1780032644000,-500.0,0.00010656,2]
[423290131,1780032644000,-500.0,0.00010612,2]
[423290129,1780032644000,-500.0,0.00010612,2]
[423290104,1780032644000,-500.0,0.00010382,2]
[423290108,1780032644000,-500.0,0.00010609,2]
[423290107,1780032644000,-500.0,0.00010609,2]
[423290103,1780032644000,-502.70006792,0.00010382,2]
[423290100,1780032644000,-500.97269763,0.00010382,2]
[423290099,1780032644000,-500.0,0.00010339,2]
[423290110,1780032644000,-500.0,0.0001061,2]
[423290098,1780032644000,-500.0,0.00010339,2]
[423290114,1780032644000,-500.0,0.00010611,2]
[423290117,1780032644000,-500.0,0.00010611,2]
[423290115,1780032644000,-483.61342486,0.00010611,2]
[423290112,1780032644000,-1431.46,0.0001061,2]
[423290113,1780032644000,-500.0,0.0001061,2]
[423290105,1780032644000,-250.0,0.00010569,2]
[423290116,1780032644000,-500.0,0.00010611,2]
[423290134,1780032644000,-500.0,0.00010612,2]
[423290130,1780032644000,-276.1284518,0.00010612,2]
[423290132,1780032644000,-500.0,0.00010612,2]
[423290126,1780032644000,-500.0,0.00010611,2]
[423290124,1780032644000,-500.0,0.00010611,2]
[423290127,1780032644000,-500.0,0.00010612,2]
[423290128,1780032644000,-500.0,0.00010612,2]
[423290119,1780032644000,-500.0,0.00010611,2]
[423290118,1780032644000,-500.0,0.00010611,2]
[423290120,1780032644000,-500.0,0.00010611,2]
[423290122,1780032644000,-500.0,0.00010611,2]
[423290125,1780032644000,-500.0,0.00010611,2]
[423290123,1780032644000,-500.0,0.00010611,2]
[423290121,1780032644000,-500.0,0.00010611,2]
[423290210,1780032645000,-500.0,0.00010772,2]
[423290209,1780032645000,-500.0,0.00010772,2]
[423290203,1780032645000,-500.0,0.00010772,2]
[423290204,1780032645000,-500.0,0.00010772,2]
[423290208,1780032645000,-500.0,0.00010772,2]
[423290190,1780032645000,-500.0,0.00010772,2]
[423290205,1780032645000,-500.0,0.00010772,2]
[423290202,1780032645000,-500.0,0.00010772,2]
[423290201,1780032645000,-500.0,0.00010772,2]
[423290200,1780032645000,-500.0,0.00010772,2]
[423290197,1780032645000,-500.0,0.00010772,2]
[423290207,1780032645000,-500.0,0.00010772,2]
[423290206,1780032645000,-500.0,0.00010772,2]
[423290223,1780032645000,-500.0,0.00010772,2]
[423290224,1780032645000,-500.0,0.00010772,2]
[423290214,1780032645000,-500.0,0.00010772,2]
[423290216,1780032645000,-500.0,0.00010772,2]
[423290213,1780032645000,-500.0,0.00010772,2]
[423290222,1780032645000,-500.0,0.00010772,2]
[423290211,1780032645000,-500.0,0.00010772,2]
[423290219,1780032645000,-500.0,0.00010772,2]
[423290218,1780032645000,-500.0,0.00010772,2]
[423290220,1780032645000,-500.0,0.00010772,2]
[423290217,1780032645000,-500.0,0.00010772,2]
[423290215,1780032645000,-500.0,0.00010772,2]
[423290221,1780032645000,-500.0,0.00010772,2]
[423290193,1780032645000,-500.0,0.00010772,2]
[423290212,1780032645000,-500.0,0.00010772,2]
[423290192,1780032645000,-500.0,0.00010772,2]
[423290186,1780032645000,-500.0,0.00010772,2]
[423290195,1780032645000,-500.0,0.00010772,2]
[423290174,1780032645000,-500.0,0.00010772,2]
[423290169,1780032645000,-500.0,0.00010772,2]
[423290171,1780032645000,-500.0,0.00010772,2]
[423290167,1780032645000,-500.0,0.00010772,2]
[423290168,1780032645000,-500.0,0.00010772,2]
[423290173,1780032645000,-500.0,0.00010772,2]
[423290166,1780032645000,-500.0,0.00010772,2]
[423290175,1780032645000,-500.0,0.00010772,2]
[423290170,1780032645000,-500.0,0.00010772,2]
[423290172,1780032645000,-500.0,0.00010772,2]
[423290176,1780032645000,-500.0,0.00010772,2]
[423290179,1780032645000,-500.0,0.00010772,2]
[423290180,1780032645000,-500.0,0.00010772,2]
[423290181,1780032645000,-500.0,0.00010772,2]
[423290182,1780032645000,-500.0,0.00010772,2]
[423290177,1780032645000,-500.0,0.00010772,2]
[423290178,1780032645000,-500.0,0.00010772,2]
[423290184,1780032645000,-500.0,0.00010772,2]
[423290187,1780032645000,-500.0,0.00010772,2]
[423290185,1780032645000,-500.0,0.00010772,2]
[423290183,1780032645000,-500.0,0.00010772,2]
[423290188,1780032645000,-500.0,0.00010772,2]
[423290199,1780032645000,-500.0,0.00010772,2]
[423290189,1780032645000,-500.0,0.00010772,2]
[423290227,1780032645000,-500.0,0.00010772,2]
[423290191,1780032645000,-500.0,0.00010772,2]
[423290196,1780032645000,-500.0,0.00010772,2]
[423290198,1780032645000,-500.0,0.00010772,2]
[423290228,1780032645000,-500.0,0.00010772,2]
[423290194,1780032645000,-500.0,0.00010772,2]
[423290229,1780032645000,-500.0,0.00010772,2]
[423290262,1780032645000,-500.0,0.00010772,2]
[423290272,1780032645000,-500.0,0.00010884,2]
[423290261,1780032645000,-500.0,0.00010772,2]
[423290265,1780032645000,-500.0,0.00010772,2]
[423290266,1780032645000,-178.245,0.00010871,2]
[423290271,1780032645000,-500.0,0.00010884,2]
[423290269,1780032645000,-505.10359606,0.00010883,2]
[423290264,1780032645000,-307.78,0.00010772,2]
[423290263,1780032645000,-500.0,0.00010772,2]
[423290268,1780032645000,-500.0,0.00010883,2]
[423290267,1780032645000,-500.0,0.00010883,2]
[423290270,1780032645000,-500.0,0.00010883,2]
[423290281,1780032645000,-311.03172529,0.00010885,2]
[423290253,1780032645000,-500.0,0.00010772,2]
[423290280,1780032645000,-456.76693813,0.00010885,2]
[423290278,1780032645000,-500.0,0.00010885,2]
[423290275,1780032645000,-566.35177378,0.00010885,2]
[423290284,1780032645000,-500.0,0.00010885,2]
[423290277,1780032645000,-500.0,0.00010885,2]
[423290273,1780032645000,-1431.46,0.00010884,2]
[423290285,1780032645000,-500.0,0.00010885,2]
[423290283,1780032645000,-530.50555189,0.00010885,2]
[423290282,1780032645000,-423.32222123,0.00010885,2]
[423290274,1780032645000,-500.0,0.00010884,2]
[423290287,1780032645000,-500.0,0.00010886,2]
[423290286,1780032645000,-500.0,0.00010885,2]
[423290288,1780032645000,-275.32148068,0.00010886,2]
[423290225,1780032645000,-500.0,0.00010772,2]
[423290276,1780032645000,-500.0,0.00010885,2]
[423290259,1780032645000,-500.0,0.00010772,2]
[423290279,1780032645000,-500.0,0.00010885,2]
[423290255,1780032645000,-500.0,0.00010772,2]
[423290254,1780032645000,-500.0,0.00010772,2]
[423290232,1780032645000,-500.0,0.00010772,2]
[423290233,1780032645000,-500.0,0.00010772,2]
[423290231,1780032645000,-500.0,0.00010772,2]
[423290237,1780032645000,-500.0,0.00010772,2]
[423290236,1780032645000,-500.0,0.00010772,2]
[423290234,1780032645000,-500.0,0.00010772,2]
[423290226,1780032645000,-500.0,0.00010772,2]
[423290235,1780032645000,-500.0,0.00010772,2]
[423290238,1780032645000,-500.0,0.00010772,2]
[423290240,1780032645000,-500.0,0.00010772,2]
[423290250,1780032645000,-500.0,0.00010772,2]
[423290251,1780032645000,-500.0,0.00010772,2]
[423290239,1780032645000,-500.0,0.00010772,2]
[423290230,1780032645000,-500.0,0.00010772,2]
[423290243,1780032645000,-500.0,0.00010772,2]
[423290252,1780032645000,-500.0,0.00010772,2]
[423290246,1780032645000,-500.0,0.00010772,2]
[423290256,1780032645000,-500.0,0.00010772,2]
[423290257,1780032645000,-500.0,0.00010772,2]
[423290248,1780032645000,-500.0,0.00010772,2]
[423290258,1780032645000,-500.0,0.00010772,2]
[423290247,1780032645000,-500.0,0.00010772,2]
[423290244,1780032645000,-500.0,0.00010772,2]
[423290245,1780032645000,-500.0,0.00010772,2]
[423290242,1780032645000,-500.0,0.00010772,2]
[423290260,1780032645000,-500.0,0.00010772,2]
[423290241,1780032645000,-500.0,0.00010772,2]
[423290249,1780032645000,-500.0,0.00010772,2]
[423290328,1780032646000,-1431.46,0.00011158,2]
[423290322,1780032646000,-185.0,0.00011136,2]
[423290318,1780032646000,-3629.0,0.00011136,2]
[423290320,1780032646000,-449.986,0.00011136,2]
[423290321,1780032646000,-567.286,0.00011136,2]
[423290324,1780032646000,-500.0,0.00011157,2]
[423290326,1780032646000,-500.0,0.00011158,2]
[423290319,1780032646000,-1835.0,0.00011136,2]
[423290323,1780032646000,-258.29911791,0.00011157,2]
[423290327,1780032646000,-500.0,0.00011158,2]
[423290325,1780032646000,-500.0,0.00011157,2]
[423290334,1780032646000,-500.0,0.00011159,2]
[423290335,1780032646000,-500.0,0.00011159,2]
[423290331,1780032646000,-500.0,0.00011159,2]
[423290332,1780032646000,-500.0,0.00011159,2]
[423290333,1780032646000,-500.0,0.00011159,2]
[423290337,1780032646000,-541.02019729,0.0001116,2]
[423290341,1780032646000,-500.0,0.0001116,2]
[423290336,1780032646000,-500.0,0.00011159,2]
[423290342,1780032646000,-500.0,0.0001116,2]
[423290338,1780032646000,-500.0,0.0001116,2]
[423290317,1780032646000,-10000.0,0.00010971,2]
[423290339,1780032646000,-203.14799248,0.0001116,2]
[423290330,1780032646000,-500.0,0.00011159,2]
[423290315,1780032646000,-513.00575894,0.00010958,6]
[423290314,1780032646000,-500.0,0.00010958,5]
[423290308,1780032646000,-367.61299272,0.00010887,2]
[423290329,1780032646000,-500.0,0.00011158,2]
[423290298,1780032646000,-500.0,0.00010886,2]
[423290297,1780032646000,-262.18288467,0.00010886,2]
[423290295,1780032646000,-350.41693709,0.00010886,2]
[423290299,1780032646000,-521.09226991,0.00010886,2]
[423290296,1780032646000,-500.0,0.00010886,2]
[423290289,1780032646000,-458.92147082,0.00010886,2]
[423290294,1780032646000,-500.0,0.00010886,2]
[423290290,1780032646000,-500.0,0.00010886,2]
[423290292,1780032646000,-530.12730617,0.00010886,2]
[423290291,1780032646000,-500.0,0.00010886,2]
[423290316,1780032646000,-570.6446157,0.00010959,2]
[423290310,1780032646000,-500.0,0.0001093,2]
[423290311,1780032646000,-500.0,0.00010958,2]
[423290313,1780032646000,-500.0,0.00010958,4]
[423290300,1780032646000,-500.0,0.00010886,2]
[423290302,1780032646000,-450.41719147,0.00010886,2]
[423290305,1780032646000,-500.0,0.00010886,2]
[423290301,1780032646000,-500.0,0.00010886,2]
[423290304,1780032646000,-500.0,0.00010886,2]
[423290303,1780032646000,-500.0,0.00010886,2]
[423290309,1780032646000,-500.0,0.0001093,2]
[423290307,1780032646000,-500.0,0.00010887,2]
[423290306,1780032646000,-500.0,0.00010887,2]
[423290312,1780032646000,-500.0,0.00010958,3]
[423290340,1780032646000,-500.0,0.0001116,2]
[423290293,1780032646000,-533.56007225,0.00010886,2]
[423290348,1780032646000,-500.0,0.00011161,2]
[423290374,1780032646000,-500.0,0.00011434,2]
[423290377,1780032646000,-500.0,0.00011434,2]
[423290375,1780032646000,-500.0,0.00011434,2]
[423290376,1780032646000,-500.0,0.00011434,2]
[423290378,1780032646000,-500.0,0.00011434,2]
[423290381,1780032646000,-500.0,0.00011434,2]
[423290379,1780032646000,-500.0,0.00011434,2]
[423290380,1780032646000,-500.0,0.00011434,2]
[423290382,1780032646000,-500.0,0.00011435,2]
[423290385,1780032646000,-115.04293773,0.00011622,2]
[423290386,1780032646000,-98.95186927,0.00011622,2]
[423290373,1780032646000,-500.0,0.00011433,2]
[423290388,1780032646000,-500.0,0.00011706,2]
[423290387,1780032646000,-500.0,0.00011705,2]
[423290390,1780032646000,-1431.46,0.00011706,2]
[423290392,1780032646000,-215.83738132,0.00011707,2]
[423290391,1780032646000,-500.0,0.00011706,2]
[423290393,1780032646000,-284.16261868,0.00011707,2]
[423290394,1780032646000,-170.35035475,0.00011707,2]
[423290395,1780032646000,-329.64964525,0.00011707,2]
[423290396,1780032646000,-316.0331328,0.00011707,2]
[423290398,1780032646000,-500.0,0.00011707,2]
[423290399,1780032646000,-500.0,0.00011707,2]
[423290400,1780032646000,-500.0,0.00011708,2]
[423290389,1780032646000,-500.0,0.00011706,2]
[423290372,1780032646000,-500.0,0.00011433,2]
[423290397,1780032646000,-183.9668672,0.00011707,2]
[423290384,1780032646000,-500.0,0.00011478,2]
[423290383,1780032646000,-500.0,0.00011435,2]
[423290356,1780032646000,-1003.49,0.00011268,2]
[423290344,1780032646000,-500.0,0.0001116,2]
[423290343,1780032646000,-303.72485807,0.0001116,2]
[423290346,1780032646000,-500.0,0.0001116,2]
[423290352,1780032646000,-404.7811516,0.00011198,2]
[423290354,1780032646000,-262.82,0.00011204,2]
[423290345,1780032646000,-500.0,0.0001116,2]
[423290353,1780032646000,-500.0,0.00011204,2]
[423290350,1780032646000,-500.0,0.00011161,2]
[423290351,1780032646000,-361.66050166,0.00011186,5]
[423290347,1780032646000,-500.0,0.0001116,2]
[423290355,1780032646000,-646.23158748,0.00011241,2]
[423290361,1780032646000,-239.04370107,0.00011431,2]
[423290358,1780032646000,-150.142,0.00011348,2]
[423290369,1780032646000,-500.0,0.00011433,2]
[423290367,1780032646000,-344.54673509,0.00011433,2]
[423290365,1780032646000,-1431.46,0.00011432,2]
[423290360,1780032646000,-150.047,0.00011348,2]
[423290368,1780032646000,-500.0,0.00011433,2]
[423290371,1780032646000,-500.0,0.00011433,2]
[423290362,1780032646000,-500.0,0.00011431,2]
[423290364,1780032646000,-500.0,0.00011432,2]
[423290366,1780032646000,-500.0,0.00011432,2]
[423290370,1780032646000,-500.0,0.00011433,2]
[423290363,1780032646000,-500.0,0.00011432,2]
[423290428,1780032647000,-500.0,0.00011982,2]
[423290427,1780032647000,-509.52464406,0.00011982,2]
[423290438,1780032647000,-500.0,0.00012254,2]
[423290429,1780032647000,-500.0,0.00011982,2]
[423290431,1780032647000,-500.0,0.00011982,2]
[423290432,1780032647000,-500.0,0.00011983,2]
[423290434,1780032647000,-319.59502021,0.00011999,2]
[423290430,1780032647000,-500.0,0.00011982,2]
[423290433,1780032647000,-500.0,0.00011983,2]
[423290446,1780032647000,-320.42295506,0.00012256,2]
[423290436,1780032647000,-326.8509812,0.00012031,2]
[423290437,1780032647000,-500.0,0.00012253,2]
[423290439,1780032647000,-1431.46,0.00012254,2]
[423290447,1780032647000,-500.0,0.00012256,2]
[423290426,1780032647000,-214.42817712,0.00011982,2]
[423290448,1780032647000,-500.0,0.00012256,2]
[423290440,1780032647000,-645.2901033,0.00012254,2]
[423290442,1780032647000,-565.24132437,0.00012255,2]
[423290443,1780032647000,-500.0,0.00012255,2]
[423290444,1780032647000,-500.0,0.00012255,2]
[423290445,1780032647000,-500.0,0.00012256,2]
[423290435,1780032647000,-599.84611527,0.00012026,2]
[423290421,1780032647000,-500.0,0.00011981,2]
[423290416,1780032647000,-544.54128637,0.0001198,2]
[423290417,1780032647000,-1431.46,0.0001198,2]
[423290441,1780032647000,-500.0,0.00012255,2]
[423290404,1780032647000,-500.0,0.00011708,2]
[423290411,1780032647000,-864.0,0.00011743,2]
[423290410,1780032647000,-500.0,0.00011709,2]
[423290406,1780032647000,-305.27027487,0.00011708,2]
[423290402,1780032647000,-500.0,0.00011708,2]
[423290405,1780032647000,-500.0,0.00011708,2]
[423290403,1780032647000,-500.0,0.00011708,2]
[423290412,1780032647000,-500.0,0.00011752,2]
[423290401,1780032647000,-500.0,0.00011708,2]
[423290409,1780032647000,-500.0,0.00011709,2]
[423290407,1780032647000,-194.72972513,0.00011708,2]
[423290415,1780032647000,-177.50670968,0.0001198,2]
[423290414,1780032647000,-322.49329032,0.0001198,2]
[423290418,1780032647000,-500.0,0.0001198,2]
[423290413,1780032647000,-500.0,0.00011979,2]
[423290423,1780032647000,-186.49907058,0.00011981,2]
[423290424,1780032647000,-637.9,0.00011982,2]
[423290422,1780032647000,-500.0,0.00011981,2]
[423290420,1780032647000,-500.0,0.00011981,2]
[423290425,1780032647000,-500.0,0.00011982,2]
[423290419,1780032647000,-500.0,0.00011981,2]
[423290408,1780032647000,-500.0,0.00011708,2]
[423290450,1780032647000,-500.0,0.00012257,2]
[423290459,1780032647000,-500.0,0.0001253,2]
[423290468,1780032647000,-1445.19536465,0.00012738,5]
[423290485,1780032647000,-562.06043544,0.00013079,2]
[423290477,1780032647000,-1000.0,0.00012918,2]
[423290483,1780032647000,-500.0,0.00013078,2]
[423290462,1780032647000,-500.0,0.00012531,2]